bitfinex/quotes_SOLUSD_20251120
["timestamp","ask_amount","ask_price","bid_price","bid_amount"]
[1763650583244,0.1,141.2,141.19,6.98263473]
[1763650583547,0.79,141.2,141.18,6.98263473]
[1763650583851,0.79,141.2,141.19,6.98263473]
[1763650584233,0.1,141.2,141.19,6.98263473]
[1763650584433,7.87215297,141.2,141.14,7.08503587]
[1763650584635,6.98263473,141.19,141.07,0.67]
[1763650584953,0.69,141.19,141.15,6.98263473]
[1763650585251,0.69,141.18,141.11,18.12096]
[1763650585437,0.69,141.18,141.13,6.98263473]
[1763650585750,0.69,141.18,141.13,8.72263473]
[1763650586139,0.69,141.18,141.08,7.08817692]
[1763650586442,31.77543773,141.17,141.11,6.98263473]
[1763650586646,6.98263473,141.12,141.01,5.84952914]
[1763650586824,0.69,141.18,141.05,1.99999999]
[1763650587024,0.69,141.17,141.12,6.98263473]
[1763650587226,18.81096,141.17,141.09,6.98263473]
[1763650587433,6.98263473,141.15,141.09,6.98263473]
[1763650587641,7.67263473,141.16,141.09,6.98263473]
[1763650587842,0.69,141.15,141.09,6.98263473]
[1763650588020,0.69,141.15,141.06,2.41]
[1763650588021,0.69,141.15,141.11,6.98263473]
[1763650588437,0.69,141.15,141.1,6.98263473]
[1763650588652,7.77475393,141.15,141.1,14.06976662]
[1763650588949,0.69,141.17,141.14,6.98263473]
[1763650589152,0.69,141.17,141.15,6.98263473]
[1763650589352,0.69,141.17,141.12,9.78882769]
[1763650589556,7.77367255,141.17,141.14,6.98263473]
[1763650589740,0.69,141.17,141.15,6.98263473]
[1763650590135,0.69,141.17,141.16,6.98263473]
[1763650590336,0.69,141.17,141.15,6.98263473]
[1763650590532,7.773672,141.17,141.14,6.98263473]
[1763650591024,0.7,141.16,141.15,6.98263473]
[1763650591448,18.12096,141.19,141.15,6.98263473]
[1763650591649,0.7,141.18,141.12,7.67263473]
[1763650591857,0.7,141.18,141.17,6.98263473]
[1763650592035,0.8,141.2,141.17,6.98263473]
[1763650592359,0.7,141.19,141.17,6.98263473]
[1763650592531,7.08315625,141.18,141.16,6.98263473]
[1763650592731,0.7,141.19,141.16,6.98263473]
[1763650592732,7.78284458,141.19,141.16,6.98263473]
[1763650592925,0.1,141.2,141.14,11.52882769]
[1763650593125,0.8,141.2,141.18,6.98263473]
[1763650593350,0.8,141.2,141.17,6.98263473]
[1763650593546,0.1,141.2,141.17,6.98263473]
[1763650593855,0.8,141.2,141.18,6.98263473]
[1763650594856,0.1,141.2,141.18,6.98263473]
[1763650595056,0.1,141.2,141.19,6.98263473]
[1763650596035,0.1,141.2,141.19,17.46146242]
[1763650596239,0.1,141.2,141.19,16.77146242]
[1763650596858,0.1,141.2,141.19,23.85411699]
[1763650597258,0.1,141.2,141.17,8.82356305]
[1763650597259,0.8,141.2,141.17,8.82356305]
[1763650597443,0.1,141.2,141.19,6.98263473]
[1763650598428,0.8,141.2,141.19,6.98263473]
[1763650598631,0.8,141.2,141.18,6.98263473]
[1763650598940,0.8,141.2,141.18,14.06564241]
[1763650599460,0.8,141.2,141.19,6.98263473]
[1763650599760,0.8,141.2,141.18,6.98263473]
[1763650600137,0.8,141.2,141.19,6.98263473]
[1763650600334,0.8,141.2,141.16,16.87285703]
[1763650600678,0.8,141.2,141.18,6.98263473]
[1763650601163,7.88221696,141.2,141.15,1.74]
[1763650601342,7.88221696,141.2,141.16,6.98263473]
[1763650601543,0.7,141.19,141.17,6.98263473]
[1763650602193,2.44,141.19,141.1,9.78882769]
[1763650602363,6.98263473,141.18,141.11,6.98263473]
[1763650602680,0.7,141.18,141.13,6.98263473]
[1763650602994,9.52394757,141.17,141.13,6.98263473]
[1763650603153,1.74,141.19,141.15,6.98263473]
[1763650603361,0.8,141.2,141.17,6.98263473]
[1763650603554,0.8,141.2,141.18,6.98263473]
[1763650604372,7.88216238,141.2,141.15,9.78882769]
[1763650604656,0.8,141.2,141.18,6.98263473]
[1763650605085,0.8,141.2,141.18,14.06570297]
[1763650605273,0.1,141.2,141.19,6.98263473]
[1763650605587,0.1,141.2,141.19,16.77146242]
[1763650605790,0.1,141.2,141.19,6.98263473]
[1763650605952,0.1,141.2,141.17,16.87230451]
[1763650606153,0.1,141.2,141.19,6.98263473]
[1763650607155,0.1,141.2,141.19,14.0652893]
[1763650607466,0.1,141.2,141.19,23.85411699]
[1763650608358,0.1,141.2,141.19,26.28411699]
[1763650609294,0.1,141.2,141.19,19.30148226]
[1763650609499,0.1,141.2,141.19,26.28411699]
[1763650609703,0.1,141.2,141.19,18.51146242]
[1763650609884,0.1,141.2,141.19,25.59411699]
[1763650610395,0.1,141.2,141.19,15.8052893]
[1763650610706,0.1,141.2,141.17,9.78882769]
[1763650611000,0.1,141.2,141.19,6.98263473]
[1763650611181,0.1,141.2,141.19,14.0652893]
[1763650611504,0.1,141.2,141.19,6.98263473]
[1763650611702,0.1,141.2,141.19,23.85411699]
[1763650611893,0.1,141.2,141.19,24.57411699]
[1763650613519,0.1,141.2,141.19,31.55675172]
[1763650613881,0.7,141.32,141.23,9.78882769]
[1763650614198,0.7,141.32,141.31,6.98263473]
[1763650614376,0.7,141.32,141.27,1.74]
[1763650614580,0.7,141.32,141.29,6.98263473]
[1763650614986,0.7,141.32,141.3,6.98263473]
[1763650615312,0.1,141.33,141.31,14.05926115]
[1763650615518,0.1,141.33,141.32,6.98263473]
[1763650615893,0.8,141.33,141.32,6.98263473]
[1763650616389,0.1,141.33,141.32,6.98263473]
[1763650616588,0.1,141.33,141.28,1.74]
[1763650616589,7.87563857,141.33,141.28,1.74]
[1763650616817,7.87563857,141.33,141.31,6.98263473]
[1763650617002,0.7,141.32,141.31,6.98263473]
[1763650618014,0.1,141.33,141.31,6.98263473]
[1763650618236,0.8,141.33,141.32,6.98263473]
[1763650618583,7.87563857,141.33,141.3,6.98263473]
[1763650619007,0.7,141.32,141.31,6.98263473]
[1763650619195,0.7,141.32,141.3,6.98263473]
[1763650619394,7.77636034,141.32,141.3,6.98263473]
[1763650619808,0.7,141.31,141.3,6.98263473]
[1763650620008,0.7,141.32,141.3,6.98263473]
[1763650620209,0.7,141.32,141.31,6.98263473]
[1763650620415,7.17574196,141.33,141.3,6.98263473]
[1763650620608,0.8,141.33,141.31,6.98263473]
[1763650620796,0.8,141.33,141.32,6.98263473]
[1763650621192,0.8,141.33,141.28,8.81799396]
[1763650621420,0.8,141.33,141.32,6.98263473]
[1763650621589,0.1,141.33,141.32,6.98263473]
[1763650621923,7.87563857,141.33,141.31,6.98263473]
[1763650622218,0.8,141.33,141.31,6.98263473]
[1763650622412,0.7,141.32,141.31,6.98263473]
[1763650622609,0.7,141.32,141.25,1.74]
[1763650622915,0.7,141.32,141.26,12.11406132]
[1763650623606,7.07714083,141.3,141.26,12.11406132]
[1763650623807,0.7,141.32,141.29,12.11406132]
[1763650624107,0.7,141.32,141.31,12.11406132]
[1763650624309,0.1,141.33,141.31,12.11406132]
[1763650624514,0.8,141.33,141.32,12.11406132]
[1763650624713,7.87574672,141.33,141.26,1.74]
[1763650624895,7.87574672,141.33,141.29,12.11406132]
[1763650625095,0.8,141.33,141.3,12.11406132]
[1763650625295,7.87565765,141.33,141.3,12.11406132]
[1763650625506,0.8,141.33,141.26,1.74]
[1763650625715,0.8,141.33,141.3,12.11406132]
[1763650626316,19.98989429,141.33,141.23,0.72]
[1763650626623,7.87583297,141.33,141.28,12.11406132]
[1763650626817,0.7,141.32,141.28,12.11406132]
[1763650627013,0.7,141.32,141.29,12.11406132]
[1763650627336,2.44,141.32,141.27,12.11406132]
[1763650627499,7.07664001,141.31,141.25,12.11406132]
[1763650627705,37.58230135,141.31,141.25,12.11406132]
[1763650627922,37.58230135,141.31,141.24,12.11406132]
[1763650627923,12.81406132,141.3,141.24,12.11406132]
[1763650628267,12.11406132,141.29,141.22,12.11406132]
[1763650628436,31.97502132,141.28,141.19,7.0822211]
[1763650628615,32.67502132,141.28,141.22,12.11406132]
[1763650628814,0.7,141.27,141.21,12.11406132]
[1763650628999,12.11406132,141.25,141.19,12.11406132]
[1763650629204,12.11406132,141.25,141.17,8.823658]
[1763650629205,0.7,141.24,141.17,8.823658]
[1763650629422,14.55406132,141.24,141.18,12.11406132]
[1763650629630,7.08064858,141.23,141.19,12.11406132]
[1763650629817,0.7,141.23,141.19,12.11406132]
[1763650630129,25.20073882,141.25,141.21,12.11406132]
[1763650630308,0.7,141.23,141.21,12.11406132]
[1763650630509,0.7,141.23,141.2,12.11406132]
[1763650631219,0.7,141.23,141.21,12.11406132]
[1763650631523,0.7,141.23,141.17,8.82363543]
[1763650631728,7.78071598,141.23,141.2,12.11406132]
[1763650631927,0.7,141.23,141.2,12.11406132]
[1763650632128,1.74,141.25,141.22,12.11406132]
[1763650632129,0.7,141.25,141.22,12.11406132]
[1763650632330,12.11406132,141.28,141.17,61.95107043]
[1763650632331,0.7,141.28,141.24,12.11406132]
[1763650632506,0.7,141.27,141.25,12.11406132]
[1763650632935,0.7,141.29,141.26,12.11406132]
[1763650633238,0.7,141.29,141.23,1.74]
[1763650633409,0.7,141.29,141.24,12.11406132]
[1763650633604,7.07814269,141.28,141.23,1.74]
[1763650633812,0.7,141.29,141.25,12.11406132]
[1763650634116,2.44,141.31,141.27,12.11406132]
[1763650634326,18.82096,141.31,141.28,12.11406132]
[1763650634522,0.7,141.3,141.24,1.74]
[1763650634730,0.7,141.3,141.28,12.11406132]
[1763650635326,0.1,141.33,141.29,12.11406132]
[1763650635533,0.7,141.32,141.29,12.11406132]
[1763650635710,0.8,141.33,141.3,12.11406132]
[1763650636544,0.1,141.33,141.32,12.11406132]
[1763650637017,0.8,141.33,141.31,12.11406132]
[1763650637210,0.1,141.33,141.32,12.11406132]
[1763650637842,0.1,141.33,141.31,12.11406132]
[1763650638138,0.1,141.33,141.32,12.11406132]
[1763650639643,0.1,141.33,141.32,19.19020057]
[1763650640016,0.1,141.33,141.32,19.91020057]
[1763650640237,0.1,141.33,141.32,19.19020057]
[1763650640418,0.1,141.33,141.32,12.11406132]
[1763650641716,0.1,141.33,141.32,19.19020057]
[1763650642125,0.82,141.33,141.25,0.72]
[1763650642331,0.82,141.33,141.29,12.11406132]
[1763650642638,0.82,141.33,141.31,12.11406132]
[1763650642842,0.82,141.33,141.3,12.11406132]
[1763650643019,0.1,141.33,141.32,12.11406132]
[1763650643352,0.72,141.32,141.3,12.11406132]
[1763650643856,7.79619081,141.32,141.24,16.86897495]
[1763650644024,7.79619081,141.32,141.28,12.11406132]
[1763650644223,0.72,141.31,141.27,12.11406132]
[1763650644422,0.72,141.31,141.28,12.11406132]
[1763650644718,0.72,141.31,141.27,12.11406132]
[1763650644946,12.83406132,141.31,141.25,12.11406132]
[1763650645130,0.72,141.31,141.26,12.11406132]
[1763650645345,0.72,141.3,141.26,12.11406132]
[1763650645533,0.72,141.3,141.27,12.11406132]
[1763650645722,0.72,141.3,141.28,12.11406132]
[1763650645922,0.72,141.3,141.28,19.19217537]
[1763650646150,0.82,141.33,141.29,12.11406132]
[1763650646358,0.72,141.32,141.3,12.11406132]
[1763650647059,0.1,141.33,141.31,12.11406132]
[1763650647356,0.82,141.33,141.31,12.11406132]
[1763650648019,0.1,141.33,141.32,12.11406132]
[1763650648448,0.1,141.33,141.32,13.85406132]
[1763650649060,0.1,141.33,141.32,12.11406132]
[1763650649434,0.8,141.33,141.32,12.11406132]
[1763650649739,0.8,141.33,141.3,26.50969937]
[1763650649958,0.1,141.33,141.32,19.19020057]
[1763650650324,0.8,141.33,141.32,12.11406132]
[1763650650523,0.8,141.33,141.3,12.11406132]
[1763650650758,7.87580528,141.33,141.3,12.11406132]
[1763650651144,7.17580528,141.33,141.3,12.11406132]
[1763650651455,0.8,141.33,141.31,12.11406132]
[1763650652039,0.8,141.33,141.32,12.11406132]
[1763650652237,0.1,141.33,141.32,12.11406132]
[1763650652550,0.8,141.33,141.32,12.11406132]
[1763650653553,0.8,141.33,141.31,7.07662635]
[1763650653752,0.1,141.33,141.32,12.11406132]
[1763650654252,0.1,141.33,141.32,19.19020057]
[1763650654557,0.8,141.33,141.32,12.11406132]
[1763650654760,0.8,141.33,141.3,7.07714083]
[1763650654928,0.8,141.33,141.32,12.11406132]
[1763650655457,0.8,141.33,141.29,26.93853694]
[1763650655627,7.87569279,141.33,141.31,12.11406132]
[1763650655826,7.87569279,141.33,141.3,12.11406132]
[1763650656030,7.77621157,141.32,141.29,13.85406132]
[1763650656247,0.7,141.32,141.3,12.11406132]
[1763650656452,0.7,141.31,141.28,1.74]
[1763650656650,0.8,141.33,141.3,12.11406132]
[1763650656856,0.8,141.33,141.29,12.11406132]
[1763650656857,7.87567358,141.33,141.29,12.11406132]
[1763650657050,7.87567358,141.33,141.28,1.74]
[1763650657355,0.7,141.32,141.3,12.11406132]
[1763650657554,0.7,141.32,141.31,12.11406132]
[1763650657736,0.7,141.32,141.28,1.74]
[1763650657737,0.7,141.32,141.3,12.11406132]
[1763650658055,0.7,141.32,141.29,12.11406132]
[1763650658282,0.7,141.32,141.3,12.11406132]
[1763650659246,7.77627184,141.32,141.29,12.11406132]
[1763650659443,25.46661998,141.32,141.22,33.2700969]
[1763650659631,0.7,141.31,141.26,12.11406132]
[1763650659836,13.85406132,141.3,141.24,12.11406132]
[1763650660065,12.11406132,141.27,141.18,5.77921483]
[1763650660233,0.7,141.29,141.24,12.11406132]
[1763650660427,1.74,141.28,141.24,12.11406132]
[1763650660666,1.74,141.28,141.19,7.76261025]
[1763650660667,0.7,141.27,141.22,1.74]
[1763650660837,0.7,141.27,141.23,12.11406132]
[1763650661243,0.7,141.27,141.24,12.11406132]
[1763650661440,0.7,141.27,141.2,2.42]
[1763650661646,0.7,141.27,141.24,12.11406132]
[1763650661958,0.7,141.27,141.25,12.11406132]
[1763650662542,0.7,141.27,141.24,12.11406132]
[1763650662755,0.7,141.27,141.25,12.11406132]
[1763650663066,7.77876282,141.27,141.23,12.11406132]
[1763650663233,7.77876282,141.27,141.22,12.11406132]
[1763650663561,0.7,141.26,141.18,7.08301962]
[1763650663737,12.11406132,141.24,141.19,12.11406132]
[1763650663935,0.7,141.26,141.21,12.11406132]
[1763650664153,20.13911504,141.25,141.17,18.38802443]
[1763650664357,27.21884201,141.25,141.2,12.11406132]
[1763650664550,0.7,141.24,141.18,27.21099706]
[1763650664749,0.7,141.24,141.23,12.11406132]
[1763650664949,12.11406132,141.31,141.23,12.11406132]
[1763650665147,0.1,141.33,141.22,2.42]
[1763650665148,9.51733349,141.3,141.22,2.42]
[1763650665352,9.51733349,141.3,141.26,12.11406132]
[1763650665562,12.81406132,141.29,141.2,1.74]
[1763650665865,0.7,141.29,141.23,12.11406132]
[1763650666062,0.7,141.28,141.24,12.11406132]
[1763650666269,7.07864373,141.27,141.2,1.74]
[1763650666439,1.74,141.26,141.23,12.11406132]
[1763650666745,2.44,141.26,141.23,12.11406132]
[1763650666940,0.7,141.25,141.23,12.11406132]
[1763650667276,0.7,141.29,141.24,12.11406132]
[1763650667440,0.7,141.29,141.21,0.68]
[1763650667441,0.7,141.28,141.21,0.68]
[1763650667640,0.7,141.28,141.25,12.11406132]
[1763650667869,0.7,141.28,141.26,12.11406132]
[1763650668569,0.7,141.28,141.26,19.19306497]
[1763650668756,0.7,141.28,141.23,1.74]
[1763650668958,0.7,141.28,141.24,12.11406132]
[1763650669469,0.7,141.28,141.26,12.11406132]
[1763650669777,0.7,141.28,141.25,12.11406132]
[1763650670570,7.77819244,141.28,141.24,7.07999701]
[1763650670738,0.7,141.28,141.25,12.11406132]
[1763650670944,0.7,141.28,141.26,12.11406132]
[1763650671139,0.7,141.28,141.24,7.07999701]
[1763650671383,0.7,141.28,141.25,12.11406132]
[1763650671668,7.77820881,141.28,141.24,19.19405833]
[1763650671871,7.77820881,141.28,141.24,12.11406132]
[1763650672072,25.19746845,141.32,141.25,12.11406132]
[1763650672271,0.67,141.31,141.27,12.11406132]
[1763650672570,7.07714083,141.3,141.24,26.52047012]
[1763650672756,7.07714083,141.3,141.26,12.11406132]
[1763650673071,0.67,141.29,141.26,12.11406132]
[1763650673291,0.67,141.29,141.25,12.11406132]
[1763650673765,0.67,141.29,141.26,12.11406132]
[1763650674271,0.67,141.29,141.25,12.11406132]
[1763650674566,7.74806937,141.29,141.25,12.11406132]
[1763650674772,0.67,141.28,141.25,12.11406132]
[1763650674982,0.67,141.28,141.23,7.08047049]
[1763650675178,2.41,141.28,141.24,12.11406132]
[1763650675484,0.67,141.28,141.24,12.11406132]
[1763650675648,24.77217369,141.29,141.23,7.08047049]
[1763650675649,7.07806937,141.29,141.25,12.11406132]
[1763650675848,0.67,141.28,141.24,12.11406132]
[1763650676379,0.67,141.28,141.25,12.11406132]
[1763650677054,7.74837886,141.28,141.25,12.11406132]
[1763650677255,7.74815068,141.28,141.25,12.11406132]
[1763650677452,0.67,141.27,141.25,12.11406132]
[1763650677858,0.67,141.27,141.24,12.11406132]
[1763650678176,0.67,141.27,141.23,12.11406132]
[1763650678682,0.67,141.27,141.22,1.74]
[1763650678859,7.07815068,141.28,141.25,12.11406132]
[1763650679180,0.67,141.28,141.26,12.11406132]
[1763650679347,0.67,141.27,141.25,12.11406132]
[1763650679674,0.67,141.27,141.26,12.11406132]
[1763650680042,2.41,141.29,141.26,12.11406132]
[1763650680248,0.67,141.29,141.27,12.11406132]
[1763650680478,0.67,141.28,141.27,12.11406132]
[1763650680668,0.1,141.33,141.27,12.11406132]
[1763650680669,0.1,141.33,141.28,0.68]
[1763650680847,0.1,141.33,141.32,12.11406132]
[1763650681267,0.1,141.33,141.31,12.11406132]
[1763650681268,0.77,141.33,141.31,12.11406132]
[1763650681650,0.1,141.33,141.32,12.11406132]
[1763650682355,0.1,141.33,141.28,1.74]
[1763650682356,0.77,141.33,141.28,1.74]
[1763650682549,0.77,141.33,141.31,12.11406132]
[1763650682967,0.1,141.33,141.32,12.11406132]
[1763650683478,0.1,141.33,141.32,19.19020057]
[1763650684579,0.1,141.33,141.32,19.87020057]
[1763650684784,0.1,141.33,141.32,14.70713705]
[1763650684960,0.1,141.33,141.32,6.9509978]
[1763650686355,0.1,141.33,141.31,6.9509978]
[1763650686571,0.1,141.33,141.32,6.9509978]
[1763650686859,0.77,141.33,141.32,6.9509978]
[1763650687076,0.77,141.33,141.31,6.9509978]
[1763650688268,0.1,141.33,141.32,6.9509978]
[1763650688664,7.84563857,141.33,141.29,1.74]
[1763650688887,0.77,141.33,141.3,6.9509978]
[1763650689086,0.1,141.33,141.32,6.9509978]
[1763650689296,0.77,141.33,141.32,6.9509978]
[1763650689610,0.77,141.33,141.31,6.9509978]
[1763650690690,7.84564785,141.33,141.29,1.74]
[1763650691190,7.74616619,141.32,141.29,1.74]
[1763650691390,0.1,141.33,141.31,6.9509978]
[1763650691892,0.1,141.33,141.32,6.9509978]
[1763650692592,0.77,141.33,141.31,6.9509978]
[1763650693767,7.84575428,141.33,141.31,6.9509978]
[1763650694465,0.77,141.33,141.3,6.9509978]
[1763650694865,0.1,141.33,141.31,2.92129197]
[1763650695089,0.77,141.33,141.31,2.92129197]
[1763650695483,0.77,141.33,141.3,7.0770363]
[1763650695692,7.8456777,141.33,141.31,2.92129197]
[1763650695874,7.8456777,141.33,141.3,2.92129197]
[1763650696076,0.67,141.32,141.3,2.92129197]
[1763650696593,0.67,141.32,141.29,2.92129197]
[1763650696803,0.67,141.32,141.28,2.92129197]
[1763650697371,7.74634105,141.32,141.28,2.92129197]
[1763650697600,1.84,141.33,141.3,2.92129197]
[1763650697802,0.67,141.32,141.28,7.0777583]
[1763650699273,0.67,141.32,141.27,24.77452945]
[1763650699596,0.67,141.32,141.28,0.68]
[1763650699805,0.67,141.32,141.27,25.48239382]
[1763650700009,0.67,141.32,141.27,26.16239382]
[1763650700595,0.67,141.32,141.26,7.07893429]
[1763650700913,21.04225197,141.3,141.23,9.78882769]
[1763650701071,21.04225197,141.3,141.2,0.67]
[1763650701072,2.92129197,141.24,141.2,5.79491014]
[1763650701272,10.00194055,141.23,141.19,7.08254101]
[1763650701491,7.08064858,141.23,141.19,7.08254101]
[1763650701699,0.67,141.23,141.19,10.00383298]
[1763650702005,0.67,141.23,141.19,2.92129197]
[1763650702205,0.67,141.23,141.2,2.92129197]
[1763650702774,8.70602853,141.25,141.2,6.96602853]
[1763650702998,0.67,141.24,141.2,6.96602853]
[1763650703505,7.08064858,141.23,141.2,6.96602853]
[1763650703975,7.75064858,141.23,141.2,6.96602853]
[1763650704177,7.75064858,141.23,141.19,6.96602853]
[1763650704677,0.67,141.22,141.19,6.96602853]
[1763650704873,0.67,141.22,141.18,6.96602853]
[1763650705708,7.75123798,141.22,141.18,6.96602853]
[1763650705899,14.71726651,141.22,141.17,6.96602853]
[1763650706110,14.71726651,141.22,141.14,10.45882769]
[1763650706111,7.63602853,141.21,141.14,10.45882769]
[1763650706421,7.63602853,141.21,141.14,6.96602853]
[1763650706422,6.96602853,141.19,141.14,6.96602853]
[1763650706718,6.96602853,141.18,141.12,1.74]
[1763650706910,0.67,141.2,141.08,5.79491014]
[1763650707107,27.49698853,141.19,141.14,6.96602853]
[1763650707419,9.49297676,141.19,141.15,6.96602853]
[1763650707720,1.74,141.18,141.16,6.96602853]
[1763650707884,1.74,141.18,141.17,6.96602853]
[1763650708423,0.67,141.19,141.17,6.96602853]
[1763650708789,0.67,141.19,141.16,6.96602853]
[1763650709318,18.79096,141.23,141.18,6.96602853]
[1763650709488,7.75074477,141.23,141.2,6.96602853]
[1763650709681,0.72,141.22,141.21,6.96602853]
[1763650710187,7.800211,141.24,141.21,6.96602853]
[1763650710492,0.72,141.23,141.21,6.96602853]
[1763650710904,0.72,141.23,141.17,16.87233988]
[1763650711104,0.72,141.23,141.19,6.96602853]
[1763650711314,7.68602853,141.23,141.18,6.96602853]
[1763650711492,7.08114997,141.22,141.18,6.96602853]
[1763650711808,6.96602853,141.2,141.15,1.74]
[1763650712000,6.96602853,141.2,141.15,6.96602853]
[1763650712208,0.72,141.19,141.16,6.96602853]
[1763650712594,0.72,141.19,141.12,27.11071416]
[1763650713496,7.802724,141.19,141.13,24.79982993]
[1763650713692,7.802724,141.19,141.13,7.08566569]
[1763650714115,7.802724,141.19,141.15,6.96602853]
[1763650714498,0.72,141.18,141.15,6.96602853]
[1763650714822,0.72,141.18,141.12,2.43]
[1763650714823,0.72,141.18,141.16,6.96602853]
[1763650715597,7.80318572,141.18,141.16,6.96602853]
[1763650716022,0.72,141.18,141.16,6.96602853]
[1763650716794,7.80328475,141.18,141.15,6.96602853]
[1763650717223,0.72,141.17,141.15,6.96602853]
[1763650717523,0.72,141.17,141.13,7.0855075]
[1763650717730,0.72,141.17,141.14,6.96602853]
[1763650719020,0.72,141.17,141.15,6.96602853]
[1763650719228,9.54283493,141.19,141.15,6.96602853]
[1763650719597,0.72,141.18,141.15,6.96602853]
[1763650720001,0.72,141.18,141.16,6.96602853]
[1763650720210,24.67091247,141.21,141.17,6.96602853]
[1763650720211,1.74,141.2,141.17,6.96602853]
[1763650720525,2.46,141.2,141.17,6.96602853]
[1763650720699,0.72,141.19,141.16,6.96602853]
[1763650721101,1.74,141.2,141.17,6.96602853]
[1763650721322,1.74,141.2,141.18,6.96602853]
[1763650721521,0.72,141.2,141.18,6.96602853]
[1763650721697,0.72,141.19,141.17,6.96602853]
[1763650721897,0.72,141.19,141.16,6.96602853]
[1763650722932,7.08315625,141.18,141.16,6.96602853]
[1763650723403,7.80315625,141.18,141.16,6.96602853]
[1763650723606,0.72,141.18,141.16,6.96602853]
[1763650724307,0.72,141.18,141.12,26.54137641]
[1763650724630,0.72,141.18,141.15,6.96602853]
[1763650724945,7.80174107,141.21,141.16,14.0500764]
[1763650725107,2.46,141.2,141.17,6.96602853]
[1763650725521,0.72,141.19,141.17,6.96602853]
[1763650725722,0.72,141.19,141.16,6.96602853]
[1763650726003,0.72,141.19,141.13,7.77538031]
[1763650726320,0.72,141.19,141.15,6.96602853]
[1763650726905,31.75707541,141.18,141.13,6.96602853]
[1763650727141,1.74,141.17,141.13,6.96602853]
[1763650727344,0.72,141.16,141.12,6.96602853]
[1763650727917,0.72,141.16,141.13,6.96602853]
[1763650728727,0.72,141.16,141.14,6.96602853]
[1763650729029,0.72,141.16,141.13,10.01375804]
[1763650729326,20.63623631,141.18,141.14,2.92834568]
[1763650729327,0.72,141.18,141.14,2.92834568]
[1763650729520,0.72,141.17,141.15,2.92834568]
[1763650730844,0.72,141.17,141.13,2.92834568]
[1763650731216,0.72,141.17,141.14,2.92834568]
[1763650731419,7.80377137,141.17,141.14,2.92834568]
[1763650731633,0.67,141.16,141.14,2.92834568]
[1763650731937,7.75377137,141.17,141.14,2.92834568]
[1763650732137,8.82336809,141.18,141.15,2.92834568]
[1763650732325,0.67,141.17,141.15,2.92834568]
[1763650732519,0.67,141.17,141.13,7.0852406]
[1763650732737,0.67,141.17,141.15,2.92834568]
[1763650734022,7.75369132,141.17,141.14,2.92834568]
[1763650734528,0.67,141.16,141.14,2.92834568]
[1763650735223,7.08369132,141.17,141.14,2.92834568]
[1763650735224,7.08369132,141.17,141.15,2.92834568]
[1763650735422,7.75369132,141.17,141.15,2.92834568]
[1763650736052,0.67,141.16,141.14,2.92834568]
[1763650736228,7.08369132,141.17,141.14,2.92834568]
[1763650736552,7.75369132,141.17,141.14,2.92834568]
[1763650737141,8.82334501,141.18,141.15,2.92834568]
[1763650737344,8.82334501,141.18,141.14,7.08515948]
[1763650737551,9.49334501,141.18,141.15,2.92834568]
[1763650737727,8.82334501,141.18,141.15,2.92834568]
[1763650737928,0.67,141.17,141.15,2.92834568]
[1763650738128,7.7537724,141.17,141.14,10.01350516]
[1763650738933,35.82522833,141.21,141.15,2.92834568]
[1763650739133,2.41,141.2,141.17,2.92834568]
[1763650739550,0.67,141.19,141.16,2.92834568]
[1763650740056,2.92834568,141.18,141.11,12.22882769]
[1763650740252,7.083658,141.17,141.13,2.92834568]
[1763650740460,9.493658,141.17,141.13,2.92834568]
[1763650740661,9.493658,141.17,141.11,9.52661045]
[1763650740662,0.67,141.16,141.11,9.52661045]
[1763650740845,0.67,141.16,141.13,2.92834568]
[1763650741243,0.67,141.16,141.12,2.92834568]
[1763650741852,0.67,141.16,141.13,2.92834568]
[1763650742058,3.59834568,141.16,141.11,2.92834568]